bitfinex-derivatives/quotes_BTCF0:USTF0_20240815
["timestamp","ask_amount","ask_price","bid_price","bid_amount"]
[1723763409583,0.4158,57608.0,57595.0,0.243]
[1723763409584,0.043394,57597.0,57595.0,0.243]
[1723763409894,0.043394,57597.0,57590.0,0.043399]
[1723763409895,0.12,57597.0,57590.0,0.043399]
[1723763410095,0.043395,57595.0,57588.0,0.0434]
[1723763410286,0.055,57594.0,57588.0,0.0434]
[1723763410489,0.12,57594.0,57586.0,0.36106052]
[1723763410693,0.12,57594.0,57592.0,0.043397]
[1723763411909,0.12,57594.0,57592.0,0.283497]
[1723763412100,0.12,57594.0,57593.0,0.3608]
[1723763412301,0.122,57594.0,57593.0,0.3608]
[1723763413299,0.125,57594.0,57593.0,0.3608]
[1723763413494,0.125,57594.0,57593.0,0.413]
[1723763413801,0.125,57594.0,57593.0,4.226397]
[1723763414001,0.01939298,57594.0,57593.0,4.386397]
[1723763414202,0.01939298,57594.0,57593.0,5.307277]
[1723763414502,0.62161951,57618.0,57609.0,0.043385]
[1723763414696,0.4908,57610.0,57609.0,0.043385]
[1723763414896,0.13,57610.0,57609.0,0.404185]
[1723763415097,0.13,57610.0,57609.0,4.225685]
[1723763415699,0.132,57610.0,57609.0,4.226685]
[1723763416304,0.132,57610.0,57609.0,4.227685]
[1723763416305,0.136,57610.0,57609.0,4.227685]
[1723763419112,0.006,57610.0,57609.0,4.227685]
[1723763419316,0.05175261,57632.0,57627.0,0.043371]
[1723763419610,0.4908,57631.0,57625.0,0.6009]
[1723763420011,0.13,57631.0,57625.0,0.6009]
[1723763420211,0.13,57631.0,57625.0,0.3608]
[1723763420898,0.132,57631.0,57625.0,0.3618]
[1723763421504,0.132,57631.0,57628.0,0.04337]
[1723763421699,0.132,57631.0,57625.0,0.3618]
[1723763421700,0.132,57631.0,57625.0,0.3628]
[1723763422714,0.132,57631.0,57628.0,0.001]
[1723763423112,0.65256,57631.0,57628.0,0.001]
[1723763424106,0.65056,57631.0,57628.0,0.002]
[1723763424302,0.70231261,57631.0,57628.0,0.002]
[1723763424507,0.18175261,57631.0,57628.0,0.002]
[1723763425316,0.05175261,57630.0,57628.0,0.002]
[1723763425514,0.13,57630.0,57628.0,0.001]
[1723763426607,0.13,57630.0,57628.0,0.04437]
[1723763426808,0.131,57630.0,57629.0,0.04337]
[1723763428311,0.131,57630.0,57629.0,0.04437]
[1723763429113,0.131,57630.0,57629.0,0.04537]
[1723763430409,0.131,57630.0,57629.0,0.43547]
[1723763430617,0.131,57630.0,57629.0,0.54267]
[1723763431012,0.131,57630.0,57629.0,4.31267]
[1723763431514,0.131,57630.0,57629.0,4.31167]
[1723763431712,0.131,57630.0,57629.0,4.31267]
[1723763432514,0.131,57630.0,57629.0,4.83323]
[1723763433112,0.13,57630.0,57629.0,4.83223]
[1723763433314,0.131,57630.0,57629.0,4.83323]
[1723763433514,0.131,57630.0,57629.0,4.31267]
[1723763434728,0.131,57630.0,57629.0,4.83323]
[1723763436513,0.131,57630.0,57629.0,4.31267]
[1723763439721,0.131,57630.0,57629.0,5.23323]
[1723763439914,0.01,57639.0,57638.0,0.043363]
[1723763440114,0.13175261,57648.0,57643.0,0.043359]
[1723763440312,0.12,57648.0,57643.0,0.3608]
[1723763440623,0.12,57648.0,57644.0,0.043358]
[1723763440810,0.12,57648.0,57647.0,0.043356]
[1723763442517,0.12,57648.0,57647.0,0.044356]
[1723763443223,0.12,57648.0,57647.0,0.405156]
[1723763443726,0.12,57648.0,57647.0,0.406156]
[1723763444225,0.12,57648.0,57647.0,0.3628]
[1723763445516,0.17175261,57648.0,57647.0,0.3628]
[1723763446327,0.17175261,57648.0,57643.0,0.24288]
[1723763446328,0.52044,57647.0,57634.0,0.3608]
[1723763446518,0.05176905,57642.0,57634.0,0.3608]
[1723763446720,0.043364,57637.0,57634.0,0.3608]
[1723763446919,0.043365,57635.0,57634.0,0.3608]
[1723763447224,0.683885,57635.0,57634.0,0.3608]
[1723763447425,0.8011104,57635.0,57634.0,0.3608]
[1723763447623,0.2805904,57635.0,57634.0,0.3608]
[1723763447927,0.043366,57634.0,57629.0,0.36106029]
[1723763448124,0.06906226,57633.0,57629.0,0.36106029]
[1723763448325,0.05181433,57630.0,57629.0,0.36106029]
[1723763448521,0.11,57630.0,57629.0,0.36106029]
[1723763448826,0.11,57630.0,57629.0,0.40443029]
[1723763449018,0.11,57630.0,57629.0,0.36106029]
[1723763449214,0.16181433,57630.0,57629.0,0.36106029]
[1723763449925,0.68237433,57630.0,57629.0,0.00026029]
[1723763450122,1.06042226,57630.0,57629.0,0.00026029]
[1723763450317,1.39136,57630.0,57629.0,0.00026029]
[1723763450625,1.06042226,57630.0,57629.0,0.00126029]
[1723763451423,0.4708,57630.0,57629.0,0.00126029]
[1723763451731,0.4708,57630.0,57629.0,0.00026029]
[1723763453020,0.11,57630.0,57629.0,0.00026029]
[1723763453221,0.111,57630.0,57629.0,0.00026029]
[1723763454129,0.111,57630.0,57629.0,0.04363029]
[1723763455630,0.111,57630.0,57629.0,0.40443029]
[1723763456332,0.16282608,57630.0,57629.0,0.04363029]
[1723763456831,0.16282608,57630.0,57629.0,0.00026029]
[1723763457025,0.16282608,57630.0,57629.0,0.04363029]
[1723763457225,0.111,57630.0,57629.0,0.04363029]
[1723763457735,0.111,57630.0,57629.0,3.81363029]
[1723763458123,0.111,57630.0,57629.0,4.41453029]
[1723763458629,0.111,57630.0,57629.0,4.46620997]
[1723763458829,0.111,57630.0,57629.0,4.18421917]
[1723763459429,0.111,57630.0,57629.0,4.14084917]
[1723763459627,0.11,57630.0,57629.0,4.13106029]
[1723763459824,0.11,57630.0,57629.0,0.00126029]
[1723763460222,1.03056,57630.0,57629.0,0.00126029]
[1723763460425,1.073929,57630.0,57629.0,0.00126029]
[1723763460829,1.14299126,57630.0,57629.0,0.00126029]
[1723763461332,1.073929,57630.0,57629.0,0.00126029]
[1723763461636,1.14302922,57630.0,57629.0,0.00126029]
[1723763462030,1.073929,57630.0,57629.0,0.00126029]
[1723763462338,1.14302461,57630.0,57629.0,0.00126029]
[1723763463035,0.74302461,57630.0,57629.0,0.00126029]
[1723763463431,1.14302461,57630.0,57629.0,0.00126029]
[1723763463935,1.073929,57630.0,57629.0,0.00126029]
[1723763464235,1.14301129,57630.0,57629.0,0.00126029]
[1723763464740,0.673929,57630.0,57629.0,0.00126029]
[1723763465033,0.69963963,57630.0,57629.0,0.00126029]
[1723763465225,0.17907963,57630.0,57629.0,0.00126029]
[1723763465433,0.11,57630.0,57629.0,0.00126029]
[1723763466237,0.63056,57630.0,57629.0,0.00126029]
[1723763466537,1.09963963,57630.0,57629.0,0.00126029]
[1723763466737,1.03056,57630.0,57629.0,0.00126029]
[1723763467135,1.09962097,57630.0,57629.0,0.00126029]
[1723763467631,1.03056,57630.0,57621.0,0.24284]
[1723763467838,0.05179446,57624.0,57621.0,0.24284]
[1723763468037,0.05179446,57623.0,57617.0,0.3608]
[1723763468339,0.41259446,57620.0,57614.0,0.3608]
[1723763468530,0.52259446,57620.0,57614.0,0.3608]
[1723763468727,0.05179446,57618.0,57611.0,0.00026029]
[1723763469025,0.05179446,57616.0,57611.0,0.00026029]
[1723763469245,0.11,57616.0,57611.0,0.00026029]
[1723763469532,0.11,57616.0,57615.0,0.3608]
[1723763470833,0.11,57616.0,57615.0,0.3708]
[1723763472439,0.11,57616.0,57615.0,0.3828]
[1723763473631,0.11,57616.0,57615.0,0.022]
[1723763473835,0.16182358,57616.0,57615.0,0.022]
[1723763474142,0.11,57616.0,57615.0,0.022]
[1723763474435,0.16185575,57616.0,57615.0,0.022]
[1723763474944,0.11,57616.0,57615.0,0.022]
[1723763475744,0.63068,57616.0,57615.0,0.022]
[1723763476137,0.17905928,57616.0,57615.0,0.022]
[1723763478039,0.11,57616.0,57615.0,0.022]
[1723763479935,0.16190427,57616.0,57615.0,0.03194728]
[1723763481732,0.11,57616.0,57615.0,0.03194728]
[1723763482140,0.11,57616.0,57615.0,0.022]
[1723763482340,0.17905928,57616.0,57615.0,0.022]
[1723763483537,0.64046843,57616.0,57615.0,0.022]
[1723763483741,0.11978843,57616.0,57615.0,0.022]
[1723763483945,0.48058843,57616.0,57615.0,0.022]
[1723763484351,0.52396843,57616.0,57615.0,0.01]
[1723763484649,1.4313283,57616.0,57611.0,0.00026029]
[1723763484840,0.2401,57613.0,57611.0,0.00026029]
[1723763485036,0.02997287,57612.0,57611.0,0.00026029]
[1723763485241,0.66069287,57612.0,57611.0,0.00026029]
[1723763485553,1.06069287,57612.0,57611.0,0.00026029]
[1723763485942,1.10407587,57612.0,57611.0,0.00026029]
[1723763486445,0.674103,57612.0,57611.0,0.00026029]
[1723763486645,1.074103,57612.0,57611.0,0.00026029]
[1723763486841,0.677103,57612.0,57611.0,0.00026029]
[1723763487039,1.077103,57612.0,57611.0,0.00026029]
[1723763487244,1.10684149,57612.0,57611.0,0.00026029]
[1723763487439,1.16357593,57612.0,57611.0,0.00026029]
[1723763487650,0.76357593,57612.0,57611.0,0.00026029]
[1723763487950,1.16357593,57612.0,57611.0,0.00026029]
[1723763488154,0.70684135,57612.0,57611.0,0.00026029]
[1723763488455,1.077103,57612.0,57611.0,0.00026029]
[1723763488748,1.06763958,57612.0,57611.0,0.00026029]
[1723763488949,0.113,57612.0,57611.0,0.04364329]
[1723763491244,0.113,57612.0,57611.0,0.05361334]
[1723763491647,0.113,57612.0,57611.0,0.11829302]
[1723763491852,0.112,57612.0,57611.0,0.12929302]
[1723763492550,0.112,57612.0,57611.0,0.07761334]
[1723763492850,0.112,57612.0,57611.0,0.07561334]
[1723763493253,0.111,57612.0,57611.0,0.06261334]
[1723763493550,0.111,57612.0,57611.0,0.07461334]
[1723763493551,0.112,57612.0,57611.0,0.07461334]
[1723763493953,0.112,57612.0,57611.0,3.84461334]
[1723763494150,0.112,57612.0,57611.0,4.20541334]
[1723763494356,0.09247943,57612.0,57611.0,4.20541334]
[1723763496452,0.09247943,57612.0,57611.0,5.27613334]
[1723763496759,0.09247943,57612.0,57611.0,4.87613334]
[1723763497455,0.09247943,57612.0,57611.0,4.20541334]
[1723763498953,0.09247943,57612.0,57611.0,4.35541334]
[1723763499654,0.09247943,57612.0,57611.0,4.20541334]
[1723763501760,0.09247943,57612.0,57611.0,0.50461198]
[1723763501974,0.09247943,57612.0,57611.0,0.43541334]
[1723763502350,0.09247943,57612.0,57611.0,0.07461334]
[1723763502551,0.09247943,57612.0,57611.0,0.43541334]
[1723763503464,0.09247943,57612.0,57611.0,4.31203034]
[1723763503757,0.09247943,57612.0,57611.0,0.61123293]
[1723763504854,0.09247943,57612.0,57611.0,0.54203034]
[1723763506457,0.09247943,57612.0,57611.0,4.35541334]
[1723763506662,0.09247943,57612.0,57611.0,4.42461693]
[1723763509068,0.09247943,57612.0,57611.0,4.38123393]
[1723763511368,0.09247943,57612.0,57611.0,4.31203034]
[1723763511959,0.09247943,57612.0,57611.0,4.3812521]
[1723763513766,0.09247943,57612.0,57611.0,4.4246351]
[1723763513960,0.09247943,57612.0,57611.0,4.35541334]
[1723763514569,0.09247943,57612.0,57611.0,3.99461334]
[1723763514769,0.09247943,57612.0,57611.0,4.35541334]
[1723763515967,0.09247943,57612.0,57611.0,4.44173459]
[1723763516161,0.09247943,57612.0,57611.0,4.49184355]
[1723763516574,0.09247943,57612.0,57611.0,4.40553941]
[1723763516976,0.09247943,57612.0,57611.0,4.49204063]
[1723763517564,0.09247943,57612.0,57611.0,4.40553941]
[1723763517870,0.09247943,57612.0,57611.0,4.44194855]
[1723763518070,0.09247943,57612.0,57611.0,4.35541334]
[1723763518262,0.14437963,57612.0,57611.0,4.35541334]
[1723763518469,0.09247943,57612.0,57611.0,4.35541334]
[1723763519166,0.13586243,57612.0,57611.0,0.02126029]
[1723763519366,0.22234251,57612.0,57611.0,0.02126029]
[1723763519569,0.16582428,57612.0,57611.0,0.02126029]
[1723763521077,0.52662428,57612.0,57611.0,0.02126029]
[1723763521263,0.52662428,57612.0,57609.0,0.00013981]
[1723763521264,1.41414727,57612.0,57609.0,0.00013981]
[1723763521462,1.41414727,57612.0,57585.0,0.06934542]
[1723763521463,0.55068185,57611.0,57604.0,0.05197843]
[1723763521772,0.043387,57607.0,57603.0,0.05197843]
[1723763521975,0.173387,57607.0,57603.0,0.05197843]
[1723763522365,0.00013981,57606.0,57602.0,0.05197843]
[1723763522572,0.06927371,57603.0,57602.0,0.05197843]
[1723763522767,0.18927371,57603.0,57602.0,0.05197843]
[1723763523369,0.12,57603.0,57601.0,0.42254473]
[1723763524276,0.12,57603.0,57601.0,0.3705663]
[1723763524672,0.05191911,57602.0,57601.0,0.3705663]
[1723763524871,0.17191911,57602.0,57601.0,0.3705663]
[1723763525174,0.17191911,57602.0,57601.0,0.3865663]
[1723763525478,0.17191911,57602.0,57601.0,4.1565663]
[1723763525869,0.17191911,57602.0,57601.0,4.1468]
[1723763526070,0.17391911,57602.0,57601.0,4.1308]
[1723763526371,0.122,57602.0,57601.0,4.1308]
[1723763527070,0.17391911,57602.0,57601.0,4.1308]
[1723763527274,0.122,57602.0,57601.0,4.1308]
[1723763527474,0.16539,57602.0,57601.0,4.1308]
[1723763527674,0.16539,57602.0,57601.0,0.007]
[1723763528469,0.23456602,57602.0,57601.0,0.015]
[1723763528885,1.08619,57602.0,57601.0,0.015]
[1723763529068,1.13899,57602.0,57601.0,0.015]
[1723763530280,1.20812413,57602.0,57601.0,0.015]
[1723763530579,1.25151413,57602.0,57601.0,0.015]
[1723763530782,1.25151413,57602.0,57588.0,0.41277843]
[1723763530783,0.043401,57587.0,57578.0,0.12129301]
[1723763530982,0.4808,57587.0,57575.0,0.3608]
[1723763531172,0.05185095,57581.0,57575.0,0.3608]
[1723763531372,0.043408,57579.0,57575.0,0.3608]
[1723763531576,0.173408,57579.0,57575.0,0.3608]
[1723763531786,0.13,57579.0,57575.0,0.3608]
[1723763532080,0.00016246,57578.0,57577.0,0.043409]
[1723763532285,0.13016246,57578.0,57577.0,0.043409]
[1723763534484,0.13116246,57578.0,57577.0,0.043409]
[1723763535372,0.13116246,57578.0,57577.0,0.283509]
[1723763535686,0.13216246,57578.0,57577.0,0.283509]
[1723763537288,0.13116246,57578.0,57577.0,0.283509]
[1723763537496,0.13216246,57578.0,57577.0,1.364549]
[1723763538083,0.13116246,57578.0,57577.0,1.364549]
[1723763538276,0.13216246,57578.0,57577.0,1.364549]
[1723763538589,0.08423168,57578.0,57577.0,5.134549]
[1723763538787,0.08523168,57578.0,57577.0,5.134549]
[1723763539495,0.08540919,57578.0,57577.0,5.134549]
[1723763540390,0.00117751,57578.0,57577.0,5.134549]
[1723763540686,0.26081951,57601.0,57582.0,0.043405]
[1723763540888,0.13,57601.0,57595.0,0.3608]
[1723763541288,0.13,57601.0,57597.0,0.043394]
[1723763541990,0.133,57601.0,57597.0,0.043394]
[1723763542289,0.133,57601.0,57595.0,0.3608]
[1723763542488,0.131,57601.0,57595.0,0.3608]
[1723763542790,0.132,57601.0,57595.0,0.3608]
[1723763543489,0.132,57601.0,57600.0,0.3608]
[1723763543685,0.131,57601.0,57600.0,0.3608]
[1723763544089,0.131,57601.0,57600.0,0.404192]
[1723763544482,0.132,57601.0,57600.0,0.404192]
[1723763545285,0.131,57601.0,57600.0,0.405192]
[1723763545485,0.131,57601.0,57600.0,0.41542539]
[1723763546783,0.132,57601.0,57600.0,0.41542539]
[1723763546987,0.131,57601.0,57600.0,4.18542539]
[1723763547186,0.132,57601.0,57600.0,4.18542539]
[1723763560702,0.132,57601.0,57600.0,5.26626539]
[1723763560895,0.002,57601.0,57600.0,5.57839331]
[1723763561096,0.002,57601.0,57600.0,5.52670789]
[1723763561594,0.002,57601.0,57600.0,5.76970789]
[1723763562907,0.00026051,57605.0,57604.0,0.043389]
[1723763563108,0.00026051,57605.0,57604.0,0.804289]
[1723763563311,0.00026051,57605.0,57604.0,1.725089]
[1723763564107,0.00126051,57605.0,57604.0,1.726089]
[1723763564695,0.00226051,57605.0,57604.0,1.727089]
[1723763566298,0.00226051,57605.0,57604.0,1.327089]
[1723763567497,0.00226051,57605.0,57604.0,0.806289]
[1723763568209,0.00226051,57605.0,57604.0,1.727089]
[1723763569306,0.00226051,57605.0,57604.0,1.327089]
[1723763569524,0.00226051,57605.0,57604.0,1.41362421]
[1723763569810,0.00226051,57605.0,57604.0,1.46460643]
[1723763570011,0.00226051,57605.0,57604.0,2.12405753]
[1723763570207,0.00226051,57605.0,57604.0,2.03752232]
[1723763572512,0.00226051,57605.0,57604.0,2.14597745]
[1723763572707,0.00226051,57605.0,57604.0,1.63752232]
[1723763573303,0.00226051,57605.0,57604.0,2.14597978]
[1723763573506,0.00226051,57605.0,57604.0,1.74597978]
[1723763573906,0.00226051,57605.0,57604.0,2.14597978]
[1723763574302,0.00226051,57605.0,57604.0,1.74597978]
[1723763574515,0.00226051,57605.0,57604.0,1.74592859]
[1723763574918,0.00226051,57605.0,57604.0,1.38512859]
[1723763575119,0.00226051,57605.0,57604.0,2.50672859]
[1723763576211,0.00226051,57605.0,57604.0,2.50690577]
[1723763579318,0.00226051,57605.0,57604.0,1.73899721]
[1723763579508,0.00226051,57605.0,57604.0,1.82548442]
[1723763579707,0.00226051,57605.0,57604.0,1.77437621]
[1723763580521,0.00226051,57605.0,57604.0,1.167089]
[1723763583029,0.11226051,57605.0,57604.0,0.5228]
[1723763583409,0.11226051,57605.0,57604.0,0.3628]
[1723763589013,0.11226051,57605.0,57604.0,0.406189]
[1723763589213,0.11226051,57605.0,57604.0,0.546189]
[1723763589427,0.32996334,57615.0,57604.0,0.546189]
[1723763589428,0.05187534,57615.0,57614.0,0.043381]
[1723763589624,0.05187534,57619.0,57614.0,0.5008]
[1723763589828,0.48644383,57623.0,57622.0,0.043375]
[1723763589829,0.10837534,57623.0,57622.0,0.043375]
[1723763590024,0.14292979,57628.0,57624.0,0.043373]
[1723763590025,0.05187534,57625.0,57624.0,0.043373]
[1723763590328,0.06914383,57628.0,57627.0,0.043371]
[1723763590630,0.43020434,57630.0,57627.0,3.813371]
[1723763590820,0.00026051,57630.0,57629.0,0.41270727]
[1723763591127,0.0521489,57630.0,57629.0,0.36926846]
[1723763591326,0.0521489,57630.0,57629.0,0.42114523]
[1723763591327,0.00026051,57630.0,57629.0,0.42114523]
[1723763591524,0.00026051,57630.0,57629.0,0.36926846]
[1723763591929,0.00926051,57630.0,57629.0,0.36926846]
[1723763593425,0.13926051,57630.0,57629.0,0.36926846]
[1723763593734,0.13926051,57630.0,57629.0,0.3608]
[1723763594330,0.14626051,57630.0,57629.0,0.3618]
[1723763596326,0.14626051,57630.0,57629.0,0.41363571]
[1723763596632,0.14626051,57630.0,57629.0,1.49419571]
[1723763596941,0.01626051,57630.0,57629.0,1.82239305]
[1723763597121,0.01626051,57630.0,57629.0,1.99534392]
[1723763597327,0.12224383,57651.0,57629.0,1.99534392]
[1723763597328,0.05188839,57655.0,57645.0,0.043358]
[1723763597524,0.21588839,57655.0,57647.0,0.3608]
[1723763597724,0.164,57655.0,57647.0,0.3608]
[1723763598528,0.178,57655.0,57647.0,0.3608]
[1723763598730,0.178,57655.0,57648.0,3.77]
[1723763599833,0.19,57655.0,57648.0,3.77]
[1723763600236,0.178,57655.0,57648.0,3.77]
[1723763600534,0.19,57655.0,57648.0,3.771]
[1723763600739,0.176,57655.0,57648.0,3.771]
[1723763601039,0.186,57655.0,57648.0,3.771]
[1723763601243,0.186,57655.0,57649.0,0.043354]
[1723763602527,0.186,57655.0,57649.0,0.044354]
[1723763602930,0.174,57655.0,57649.0,0.044354]
[1723763603131,0.185,57655.0,57649.0,0.045354]
[1723763604345,0.185,57655.0,57649.0,0.002]
[1723763605438,0.043353,57651.0,57649.0,0.002]
[1723763605644,0.173353,57651.0,57649.0,0.002]
[1723763606534,0.173353,57651.0,57649.0,0.001]
[1723763606734,0.185353,57651.0,57649.0,0.002]
[1723763606935,0.185353,57651.0,57649.0,0.001]
[1723763607136,0.194353,57651.0,57649.0,0.002]
[1723763607844,0.3608,57650.0,57649.0,0.002]
[1723763608043,0.4808,57650.0,57649.0,0.002]
[1723763609438,0.4928,57650.0,57649.0,0.002]
[1723763609844,0.132,57650.0,57649.0,0.002]
[1723763610244,0.142,57650.0,57649.0,0.002]
[1723763616342,0.546154,57650.0,57649.0,0.002]
[1723763616547,0.546154,57650.0,57645.0,0.36106029]
[1723763616548,0.043356,57647.0,57645.0,0.36106029]
[1723763616753,0.163356,57647.0,57645.0,0.36106029]
[1723763616953,0.563757,57646.0,57645.0,0.36106029]
[1723763617149,0.683757,57646.0,57645.0,0.36106029]
[1723763617445,0.683757,57646.0,57631.0,0.2401]
[1723763617446,0.04336,57642.0,57634.0,0.043366]
[1723763617651,0.3608,57638.0,57634.0,0.043366]
[1723763617844,0.3608,57638.0,57629.0,0.4113]
[1723763617845,0.13,57638.0,57629.0,0.4113]
[1723763618052,0.13,57638.0,57637.0,0.043364]
[1723763618252,0.13,57638.0,57637.0,0.213364]
[1723763619656,0.141,57638.0,57637.0,0.214364]
[1723763620448,0.141,57638.0,57637.0,0.26608723]
[1723763620851,0.153,57638.0,57637.0,0.26708723]
[1723763621158,0.153,57638.0,57637.0,0.215364]
[1723763622057,0.153,57638.0,57637.0,0.735844]
[1723763622550,0.02073972,57638.0,57637.0,1.096644]
[1723763622945,0.02073972,57638.0,57637.0,1.22956846]
[1723763623243,0.02073972,57638.0,57637.0,1.096644]
[1723763623952,0.01973972,57638.0,57637.0,1.096644]
[1723763624343,0.01973972,57638.0,57637.0,1.18284938]
[1723763625052,0.01973972,57638.0,57637.0,1.096644]
[1723763625247,0.011,57638.0,57637.0,0.576164]
[1723763625442,0.02,57638.0,57637.0,0.66236938]
[1723763625852,0.02,57638.0,57637.0,1.18284938]
[1723763626054,0.02,57638.0,57637.0,1.23016696]
[1723763626357,0.02,57638.0,57637.0,1.14396158]
[1723763628348,0.02,57638.0,57637.0,0.62348158]
[1723763630451,0.02,57638.0,57637.0,0.7318874]
[1723763630861,0.02,57638.0,57637.0,0.62348158]
[1723763631051,0.02,57638.0,57637.0,0.71007497]
[1723763631453,0.02,57638.0,57637.0,0.73189061]
[1723763634659,0.02,57638.0,57637.0,0.97469061]
[1723763636562,0.02,57638.0,57637.0,0.92737303]
[1723763636767,0.02,57638.0,57637.0,0.97475556]
[1723763639762,0.02,57638.0,57637.0,1.06193945]
[1723763640063,0.02,57638.0,57637.0,1.01398159]
[1723763640459,0.02,57638.0,57637.0,1.06193857]
[1723763640779,0.693843,57638.0,57637.0,0.47120903]
[1723763641064,0.043365,57636.0,57634.0,0.05196966]
[1723763641256,0.20652812,57636.0,57633.0,0.05196966]
[1723763641465,0.12989412,57634.0,57632.0,0.00026029]
[1723763641661,0.44732812,57633.0,57632.0,0.00026029]
[1723763641969,0.4808,57633.0,57632.0,0.00026029]
[1723763643263,0.12,57633.0,57632.0,0.00026029]
[1723763643661,0.17184748,57633.0,57632.0,0.00026029]
[1723763643856,0.17184748,57633.0,57632.0,0.04362729]
[1723763643857,0.12,57633.0,57632.0,0.04362729]
[1723763644061,0.11787952,57633.0,57632.0,4.02559695]
[1723763644261,0.07003042,57633.0,57632.0,4.04291907]
[1723763644575,0.07003042,57633.0,57632.0,3.97462729]
[1723763644576,0.07603042,57633.0,57632.0,3.97462729]
[1723763644766,0.07603042,57633.0,57632.0,4.33542729]
[1723763644966,0.07603042,57633.0,57632.0,4.57677354]
[1723763645268,0.07603042,57633.0,57632.0,4.33542729]
[1723763645465,0.07603042,57633.0,57632.0,4.57671114]
[1723763645672,0.07603042,57633.0,57632.0,4.57658051]
[1723763646164,0.07603042,57633.0,57632.0,4.49010258]
[1723763646376,0.07603042,57633.0,57632.0,5.01062258]
[1723763646564,0.07603042,57633.0,57632.0,4.49010258]
[1723763647173,0.07603042,57633.0,57632.0,4.57658403]
[1723763647673,0.07603042,57633.0,57632.0,4.49010258]
[1723763650174,0.00026029,57643.0,57632.0,5.62782995]
[1723763650369,0.00026029,57643.0,57642.0,0.67008779]
[1723763650569,0.00026029,57643.0,57642.0,0.83008779]
[1723763650771,0.00026029,57643.0,57642.0,4.3709]
[1723763651265,0.00026029,57643.0,57642.0,4.46556]
[1723763651573,0.01526029,57643.0,57642.0,4.46656]
[1723763652164,0.01126029,57643.0,57642.0,4.46656]
[1723763652476,0.02126029,57643.0,57642.0,4.46756]
[1723763653266,0.02126029,57643.0,57642.0,4.24533776]
[1723763653566,0.02126029,57643.0,57642.0,4.17616]
[1723763653770,0.02126029,57643.0,57642.0,4.24533848]
[1723763653970,0.02126029,57643.0,57642.0,4.25346317]
[1723763654273,0.02126029,57643.0,57642.0,4.41346317]
[1723763654472,0.02126029,57643.0,57642.0,4.65626317]
[1723763654662,0.02126029,57643.0,57642.0,4.45290317]
[1723763654663,0.13126029,57643.0,57642.0,4.45290317]
[1723763654864,0.13126029,57643.0,57642.0,4.54372469]
[1723763655063,1.05170029,57643.0,57642.0,0.66560743]
[1723763655267,1.05170029,57643.0,57642.0,0.61372469]
[1723763656071,0.65170029,57643.0,57642.0,0.61372469]
[1723763657372,0.70354939,57643.0,57642.0,0.66560743]
[1723763657764,0.65170029,57643.0,57642.0,0.66560743]
[1723763658975,0.04336,57642.0,57635.0,0.12106122]
[1723763659166,0.04336,57642.0,57633.0,0.05188274]
[1723763659167,0.05183403,57638.0,57633.0,0.05188274]
[1723763659475,0.05183403,57638.0,57632.0,0.36106029]
[1723763659476,0.67005028,57634.0,57632.0,0.00026029]
[1723763659693,0.0492,57633.0,57632.0,0.00026029]
[1723763659872,0.67972,57633.0,57632.0,0.00026029]
[1723763660075,1.07972,57633.0,57632.0,0.00026029]
[1723763660778,1.123087,57633.0,57632.0,0.00026029]
[1723763661074,1.126087,57633.0,57632.0,0.00026029]
[1723763661878,1.19513079,57633.0,57632.0,0.00026029]
[1723763662070,0.726087,57633.0,57632.0,0.00026029]
[1723763662473,0.21798194,57633.0,57632.0,0.00026029]
[1723763663175,0.117,57633.0,57632.0,0.00026029]
[1723763664280,0.16878194,57633.0,57632.0,0.00026029]
[1723763664478,0.117,57633.0,57632.0,0.00026029]
[1723763664676,0.16878194,57633.0,57632.0,0.00026029]
[1723763666378,0.117,57633.0,57632.0,0.00026029]
[1723763671692,0.117,57633.0,57632.0,0.21016029]
[1723763672387,0.117,57633.0,57632.0,0.25352729]
[1723763672891,0.117,57633.0,57632.0,0.61404729]
[1723763673094,0.005,57633.0,57632.0,0.77404729]
[1723763673280,0.005,57633.0,57632.0,1.32801447]
[1723763673486,0.005,57633.0,57632.0,4.17749447]
[1723763674786,0.005,57633.0,57632.0,4.89909447]
[1723763675886,0.005,57633.0,57632.0,5.81961447]
[1723763676090,0.00026029,57643.0,57642.0,0.04336]
[1723763676282,0.05026029,57643.0,57642.0,0.76496]
[1723763676684,0.05026029,57643.0,57642.0,4.53496]
[1723763677284,0.05226029,57643.0,57642.0,4.53596]
[1723763677891,0.05826029,57643.0,57642.0,4.53696]
[1723763678390,0.05826029,57643.0,57642.0,4.58876643]
[1723763678784,0.05826029,57643.0,57642.0,4.53696]
[1723763678986,0.05826029,57643.0,57642.0,4.58876339]
[1723763679595,0.05826029,57643.0,57642.0,4.53696]
[1723763680283,0.05826029,57643.0,57642.0,4.58876339]
[1723763680889,0.05826029,57643.0,57642.0,4.59698322]
[1723763681495,0.05826029,57643.0,57642.0,4.54517983]
[1723763682586,0.05826029,57643.0,57642.0,4.59697743]
[1723763682790,0.05826029,57643.0,57642.0,4.54517983]
[1723763682998,0.05826029,57643.0,57642.0,4.5969773]
[1723763683201,0.05826029,57643.0,57642.0,4.54517983]
[1723763683789,0.05826029,57643.0,57642.0,4.59697624]
[1723763684995,0.05826029,57643.0,57642.0,4.54517983]
[1723763685196,0.30914379,57661.0,57642.0,4.54517983]
[1723763685197,0.04178194,57665.0,57648.0,0.2502]
[1723763685399,0.26081951,57678.0,57665.0,0.2401]
[1723763685400,0.04178194,57672.0,57665.0,0.2401]
[1723763685692,0.04178194,57672.0,57671.0,0.404138]
[1723763685693,0.08,57672.0,57671.0,0.404138]
[1723763685901,0.08,57672.0,57671.0,4.174138]
[1723763688601,0.08,57672.0,57671.0,4.175138]
[1723763688804,0.08,57672.0,57671.0,4.18355042]
[1723763689099,0.08,57672.0,57671.0,4.18455042]
[1723763689893,0.08,57672.0,57671.0,4.54535042]
[1723763691504,0.08,57672.0,57671.0,0.77535042]
[1723763691801,0.08,57672.0,57671.0,0.7236]